Cogmind - Beta 14 @@@ ROGUE MODE // 2025.01.17 @ 21:34:05 Player: Not Root Result: Destroyed by S-27 Virus with Autogun Performance ------------- Evolutions (5) 2500 Regions Visited (9) 1800 Robots Destroyed (31) 155 Value Destroyed (1077) 1077 Prototype IDs (6) 120 Alien Tech Used (0) 0 Bonus (1552) 1552 TOTAL SCORE: 7204 Bonus ------- High Alert Combat Kills 140 Follower Combat Kills 986 Entered DSFs 500 Friendly Fire -74 Cogmind --------- Core Integrity 0/1000 Matter 300/300 Energy 100/100 System Corruption 0% Temperature Cool (0) Movement Core (50) Location -5/Factory Parts ------- > --- POWER (2) -------- (None) > --- PROPULSION (5) --- (None) > --- UTILITY (6) ------ (None) > --- WEAPON (4) ------- (None) > --- INVENTORY (5) ---- Improved Arc Projector Remote Datajack Peak State ------------ > --- POWER ------------ Light Deuterium Engine Enhanced Fission Core > --- PROPULSION ------- Field Propulsion Drive Field Propulsion Drive Field Propulsion Drive Field Propulsion Drive Field Propulsion Drive > --- UTILITY ---------- Visual Processing Unit Advanced Terrain Scanner Targeting Computer Reaction Control System System Restoration Module > --- WEAPON ----------- Improved Arc Projector Cooled Pulse Rifle Gauss Rifle Remote Datajack > --- INVENTORY -------- Backup Power III Airjet Cooled Antigrav System Advanced ECM Suite [Rating: 75] Favorites ----------- Power Light Nuclear Core Engine Backup Power III Power Core Light Nuclear Core Propulsion Field Propulsion Drive Leg Aluminum Leg Hover Unit Airjet Flight Unit Field Propulsion Drive Utility Improved Sensor Array Device Improved Sensor Array Storage Small Storage Unit Processor Visual Processing Unit Protection Core Shielding Weapon Gauss Rifle Energy Gun Medium Laser Energy Cannon Disruptor Cannon Ballistic Gun Gauss Rifle Ballistic Cannon Light Cannon Launcher Rocket Launcher Special Weapon Remote Datajack Special Melee Weapon Improved Datajack Build | -11 -10 -10 -8 -7 -6 -6 -6 -6 -5 ------- Run | Yrd Mat Sub Mat Fac Fac Was Fac DSF Fac Slots Evolved 10 | . . . 4 2 2 . . . 2 Power 1 | . . . . 1 . . . . . Propulsion 3 | . . . 2 . . . . . 1 Utility 4 | . . . 2 . 1 . . . 1 Weapon 2 | . . . . 1 1 . . . . Parts Attached 90 | 6 3 6 13 11 14 4 1 4 28 Power 14 | 1 . . 1 2 5 . . . 5 Engine 5 | 1 . . . 1 1 . . . 2 Core 9 | . . . 1 1 4 . . . 3 Reactor . | . . . . . . . . . . Propulsion 30 | 2 . 2 4 1 5 3 . 4 9 Treads . | . . . . . . . . . . Leg 3 | 2 . 1 . . . . . . . Wheel . | . . . . . . . . . . Hover 19 | . . 1 4 1 5 3 . . 5 Flight 8 | . . . . . . . . 4 4 Utility 19 | 1 2 2 2 3 2 1 . . 6 Device 11 | . . 1 1 2 1 . . . 6 Storage 1 | 1 . . . . . . . . . Processor 3 | . . . 1 1 1 . . . . Hackware . | . . . . . . . . . . Protection 4 | . 2 1 . . . 1 . . . Artifact . | . . . . . . . . . . Weapon 27 | 2 1 2 6 5 2 . 1 . 8 Energy Gun 6 | 1 . . 2 . . . 1 . 2 Energy Cannon 1 | . . . . . . . . . 1 Ballistic Gun 14 | 1 . 2 3 4 . . . . 4 Ballistic Cannon 3 | . 1 . 1 . 1 . . . . Launcher 1 | . . . . . 1 . . . . Special Weapon 1 | . . . . . . . . . 1 Impact Weapon . | . . . . . . . . . . Slashing Weapon . | . . . . . . . . . . Piercing Weapon . | . . . . . . . . . . Special Melee Weapon 1 | . . . . 1 . . . . . Unidentified Prototypes 6 | . . . 2 . . 1 . . 3 Parts Lost 26 | . 3 . 2 . . . . 1 20 Power 6 | . 1 . . . . . . 1 4 Propulsion 9 | . 1 . 1 . . . . . 7 Utility 6 | . 1 . . . . . . . 5 Weapon 5 | . . . 1 . . . . . 4 Highest Loss Streak 7 | . 2 . 2 . . . . 1 7 To Critical Strikes . | . . . . . . . . . . Average Slot Usage (%) 79 | . 94 62 70 95 96 89 93 92 67 Engine 3 | . 11 . . 5 2 . . 5 4 Core 4 | . . . 6 7 10 13 13 6 3 Leg 6 | . 27 14 9 1 . . . . . Hover 14 | . . 14 20 28 24 20 20 4 7 Flight 4 | . . . . . . . . 20 15 Device 9 | . . 6 6 16 15 13 13 13 10 Processor 6 | . . . 2 8 15 13 13 13 6 Protection 6 | . 20 7 9 3 . 2 6 6 2 Energy Gun 5 | . 14 5 1 3 . . 4 6 7 Ballistic Gun 11 | . 3 14 15 17 20 20 14 7 2 Ballistic Cannon 1 | . 10 . . . 1 . . . . Launcher 1 | . . . . . 4 6 6 6 1 Peak Build Rating 75 | 6 7 8 22 39 48 53 54 56 75 Average Rating 30 | 4 6 6 16 33 45 48 53 53 51 On Entrance 28 | . 6 4 7 22 36 47 53 54 54 Naked Turns 11 | . . . . . . . . . 11 Heaviest Build 34 | 12 14 6 13 27 34 33 33 33 34 Greatest Support 44 | 20 20 6 21 28 36 38 38 38 44 Greatest Overweight (x) 6 | 2 . . . . 1 . . 4 6 Average Overweight (x) . | . . . . . . . . . . Largest Inventory Capacity 8 | 8 8 5 5 5 5 5 5 5 5 Average Capacity 5 | 7 6 5 5 5 5 5 5 5 5 Most Carried 5 | 1 3 5 5 5 5 5 5 5 5 Average Carried 3 | . 1 3 3 4 4 4 5 5 3 Final Capacity 8 | 8 5 5 5 5 5 5 5 5 5 Final Carried 5 | . 3 4 5 5 5 5 5 5 2 Class Distribution -------------------- 52% | Mutant 22% | Skirmisher 15% | Tank Dominant Class ---------------- Mutant | -10/Materials Mutant | -10/Subcaves Mutant | -8/Materials Skirmisher | -7/Factory Skirmisher | -6/Factory Skirmisher | -6/Waste Tank | -6/Factory Tank | -6/DSF Mutant | -5/Factory Resources | -11 -10 -10 -8 -7 -6 -6 -6 -6 -5 ----------- Run | Yrd Mat Sub Mat Fac Fac Was Fac DSF Fac Matter Collected 1899 | 198 1 210 225 99 327 352 . 137 350 Remotely . | . . . . . . . . . . Salvage Created 1408 | . 155 58 97 42 521 223 . 126 186 Parts 56 | . 4 2 5 9 25 . . 4 7 Haulers Intercepted 1 | . . . . . . . . 1 . Recyclers Shooed . | . . . . . . . . . . Parts Field Recycled . | . . . . . . . . . . Retrieved Matter . | . . . . . . . . . . Parts Self-Destructed 7 | . . 7 . . . . . . . Prevented . | . . . . . . . . . . Kills | -11 -10 -10 -8 -7 -6 -6 -6 -6 -5 ------- Run | Yrd Mat Sub Mat Fac Fac Was Fac DSF Fac Combat Hostiles Destroyed 24 | . 2 1 2 . 11 1 . 1 6 Guns 17 | . 2 1 2 . 5 1 . . 6 Cannons 1 | . . . . . 1 . . . . AOE 6 | . . . . . 5 . . 1 . Classes Destroyed 14 | . 2 1 2 2 3 1 . 2 1 Worker 1 | . . . . . 1 . . . . Builder 1 | . . . . 1 . . . . . Tunneler 1 | . . . . 1 . . . . . Hauler 1 | . . . . . . . . 1 . Recycler 2 | . 1 . . . 1 . . . . Watcher 1 | . . . . . 1 . . . . Swarmer 10 | . . . . . 6 . . . 4 Grunt 6 | . 2 . . . 4 . . . . Sentry 3 | . . . 1 . 1 . . . 1 Specialist 1 | . . . . . . . . 1 . Hunter 1 | . . . 1 . . . . . . Programmer 1 | . . . . . . . . . 1 Compactor 1 | . . . . . . 1 . . . Subdweller 1 | . . 1 . . . . . . . Best Kill Streak 4 | . 3 1 1 2 4 1 . 1 3 Combat Bots Only 4 | . 2 1 1 . 4 1 . 1 3 Max Kills in Single Turn 2 | . 2 1 1 1 2 1 . 1 1 Gunslinging . | . . . . . . . . . . Exploded 2 | . . . . . 2 . . 1 . Melee . | . . . . . . . . . . Uniques/NPCs Destroyed . | . . . . . . . . . . Combat | -11 -10 -10 -8 -7 -6 -6 -6 -6 -5 -------- Run | Yrd Mat Sub Mat Fac Fac Was Fac DSF Fac Hostile Shots Fired 413 | . 53 10 44 12 75 . . 10 209 Missed 151 | . 7 6 22 8 35 . . 2 71 Damage Taken 4066 | . 576 93 347 71 455 18 . 215 2291 Core 1231 | . 116 18 70 . 17 . . . 1010 Absorbed by Shields . | . . . . . . . . . . Redirected to Shielding 96 | . 75 4 17 . . . . . . Regen/Repaired (Parts) 185 | . . . 29 . . 42 . 69 45 Core Remaining (%) 86 | 100 . 46 87 100 . . . 98 . Volleys Fired 121 | . 14 10 17 9 18 3 . 9 41 Largest 4 | . 2 2 2 3 4 4 . 4 3 Hottest 164 | . 85 70 68 84 132 117 . 164 161 Shots Fired 297 | . 28 20 34 26 61 12 . 25 91 Gun 254 | . 14 20 31 26 48 9 . 21 85 Cannon 26 | . 14 . 3 . 5 . . . 4 Launcher 15 | . . . . . 8 3 . 4 . Special 2 | . . . . . . . . . 2 Kinetic 183 | . 14 10 34 25 53 9 . 12 26 Thermal 75 | . 14 10 . 1 . . . 9 41 Explosive 15 | . . . . . 8 3 . 4 . Electromagnetic 22 | . . . . . . . . . 22 Robot Hit Streak 18 | . 7 15 18 3 12 2 . 3 9 Robot Miss Streak 5 | . 3 1 3 3 2 2 . 2 5 Penetration Max 1 | . . . . 1 1 . . . . Secondary Targets 1 | . . . . . . . . . 1 Max Gunslinging Chain 1 | . . . . . . . . . 1 Shots Hit Robots 183 | . 18 18 22 12 37 5 . 15 56 Core Hits 79 | . 7 5 5 6 25 3 . 6 22 Critical Kills 1 | . . . . . 1 . . . . Critical Parts Destroyed 1 | . . . . . . . . 1 . Critical Strikes 7 | . 1 1 . 1 1 . . 2 1 Burn 4 | . 1 1 . 1 . . . 1 . Destroy 3 | . . . . . 1 . . 1 1 Melee Attacks . | . . . . . . . . . . Impact . | . . . . . . . . . . Slashing . | . . . . . . . . . . Piercing . | . . . . . . . . . . Sneak Attacks . | . . . . . . . . . . Combat Hostiles . | . . . . . . . . . . Follow-up Attacks . | . . . . . . . . . . Damage Inflicted 3938 | . 262 228 233 232 1200 411 . 587 785 Guns 2530 | . 113 225 233 212 620 127 . 281 719 Cannons 229 | . 135 . . . 48 . . . 46 Explosions 1108 | . . . . . 518 284 . 306 . Melee . | . . . . . . . . . . Ramming 71 | . 14 3 . 20 14 . . . 20 Kinetic 1936 | . 135 101 233 192 668 127 . 194 286 Thermal 718 | . 113 124 . 20 . . . 87 374 Explosive 1108 | . . . . . 518 284 . 306 . Electromagnetic 105 | . . . . . . . . . 105 Impact . | . . . . . . . . . . Slashing . | . . . . . . . . . . Piercing . | . . . . . . . . . . Highest Corruption 1 | . . . . . . . . . 1 Average Corruption 1 | . . . . . . . . . 1 Corruption Purged 1 | . . . . . . . . . 1 Corruption Blocked . | . . . . . . . . . . Overload Shots 3 | . . . . . . . . . 3 Overflow Damage 5 | . . . . . 5 . . . . Projectiles . | . . . . . . . . . . Explosions 5 | . . . . . 5 . . . . Melee . | . . . . . . . . . . Knockbacks 1 | . 1 . . . . . . . . Impact . | . . . . . . . . . . Kinetic 1 | . 1 . . . . . . . . Secondary . | . . . . . . . . . . Self-Inflicted Damage 27 | . . 1 . 10 7 . . . 9 Shots . | . . . . . . . . . . Rammed 11 | . . 1 . 1 1 . . . 8 Targets Rammed 14 | . 3 1 . 1 1 . . . 8 Kicked 3 | . 3 . . . . . . . . Crushed . | . . . . . . . . . . Highest Temperature 542 | . 417 . . 181 268 150 . 80 542 Average Temperature 139 | . 209 . . 70 109 68 . 27 159 Received Heat Transfer 880 | . 330 12 18 . 99 . . . 421 Effects 9 | . 2 . . . . . . . 7 Shutdowns 2 | . . . . . . . . . 2 Energy Bleed 4 | . 2 . . . . . . . 2 Interference 3 | . . . . . . . . . 3 Siege Activations . | . . . . . . . . . . Robots Corrupted . | . . . . . . . . . . Combat Hostiles . | . . . . . . . . . . Parts Fried . | . . . . . . . . . . Impact Corruptions . | . . . . . . . . . . Robots Melted . | . . . . . . . . . . Combat Hostiles . | . . . . . . . . . . Parts Melted . | . . . . . . . . . . Heat Transferred 1993 | . 407 444 . 111 . . . 300 731 Parts Sabotaged . | . . . . . . . . . . Parts Stolen . | . . . . . . . . . . Parts Stripped . | . . . . . . . . . . Power Chain Reactions . | . . . . . . . . . . Alert | -11 -10 -10 -8 -7 -6 -6 -6 -6 -5 ------- Run | Yrd Mat Sub Mat Fac Fac Was Fac DSF Fac Peak Influence 1215 | . 45 . 91 145 532 243 170 496 1215 Initial 260 | . . . . 41 70 186 170 119 260 Average 290 | . 7 . 45 66 275 223 170 365 725 Maximum Alert Level 4 | . . . . . 2 1 . 2 4 Low Security (%) 50 | 100 100 . 100 100 37 18 100 15 . Level 1 23 | . . . . . 45 81 . 35 22 Level 2 11 | . . . . . 17 . . 48 24 Level 3 9 | . . . . . . . . . 37 Level 4 3 | . . . . . . . . . 15 Level 5 . | . . . . . . . . . . High Security . | . . . . . . . . . . Max Security . | . . . . . . . . . . Squads Dispatched 15 | . . . 3 3 3 . . 1 5 Investigation . | . . . . . . . . . . Extermination 1 | . . . . 1 . . . . . Reinforcement 7 | . . . 1 2 2 . . 1 1 Assault 2 | . . . 1 . . . . . 1 Garrison 5 | . . . 1 . 1 . . . 3 Intercept . | . . . . . . . . . . Searches Triggered . | . . . . . . . . . . Construction Impeded 1 | . . . . 1 . . . . . Haulers Reinforced 2 | . . . . . 1 . . . 1 Active Scanning Responses . | . . . . . . . . . . Cargo Convoy Interrupts . | . . . . . . . . . . Stealth | -11 -10 -10 -8 -7 -6 -6 -6 -6 -5 --------- Run | Yrd Mat Sub Mat Fac Fac Was Fac DSF Fac Distress Signals 4 | . 1 . . 1 2 . . . . Communications Jammed . | . . . . . . . . . . Distress Signals . | . . . . . . . . . . Times Spotted 105 | . 6 2 10 6 21 5 . 3 52 Peak Tracking Total 12 | . 5 2 7 4 6 2 . 2 12 Tactical Retreats 13 | . . . . 2 3 . . . 8 Traps | -11 -10 -10 -8 -7 -6 -6 -6 -6 -5 ------- Run | Yrd Mat Sub Mat Fac Fac Was Fac DSF Fac Traps Triggered 3 | . . . . . 1 . . . 2 Indirectly . | . . . . . . . . . . Trap Hack Attempts . | . . . . . . . . . . Triggered . | . . . . . . . . . . Disarmed . | . . . . . . . . . . Reprogrammed . | . . . . . . . . . . Reused . | . . . . . . . . . . Traps Extracted . | . . . . . . . . . . Installed . | . . . . . . . . . . Triggered . | . . . . . . . . . . Machines | -11 -10 -10 -8 -7 -6 -6 -6 -6 -5 ---------- Run | Yrd Mat Sub Mat Fac Fac Was Fac DSF Fac Machines Disabled 4 | . . . . . . . . 1 3 Max in Single Turn . | . . . . . . . . . . Garrison Access 1 | . . . 1 . . . . . . Machines Repaired . | . . . . . . . . . . Machines Dismantled . | . . . . . . . . . . Machines Sabotaged . | . . . . . . . . . . Overloaded Fab Kills . | . . . . . . . . . . Hacking | -11 -10 -10 -8 -7 -6 -6 -6 -6 -5 --------- Run | Yrd Mat Sub Mat Fac Fac Was Fac DSF Fac Machines Accessed 4 | . 2 . 1 . . . 1 . . Terminals 2 | . 1 . . . . . 1 . . Fabricators . | . . . . . . . . . . Repair Stations 1 | . . . 1 . . . . . . Recycling Units 1 | . 1 . . . . . . . . Scanalyzers . | . . . . . . . . . . Garrison Access . | . . . . . . . . . . Total Hacks 6 | . 3 . 2 . . . 1 . . Successful 4 | . 1 . 2 . . . 1 . . Failed 2 | . 2 . . . . . . . . Catastrophic 1 | . 1 . . . . . . . . Database Lockouts . | . . . . . . . . . . Manual . | . . . . . . . . . . Terminals 3 | . 2 . . . . . 1 . . Fabricators . | . . . . . . . . . . Repair Stations 2 | . . . 2 . . . . . . Recycling Units 1 | . 1 . . . . . . . . Scanalyzers . | . . . . . . . . . . Garrison Access . | . . . . . . . . . . Terminal Hacks 1 | . . . . . . . 1 . . Open DSF 1 | . . . . . . . 1 . . Fabricator Hacks . | . . . . . . . . . . Repair Station Hacks 2 | . . . 2 . . . . . . Scan Component 1 | . . . 1 . . . . . . Repair 1 | . . . 1 . . . . . . Recycling Unit Hacks 1 | . 1 . . . . . . . . Report Inventory 1 | . 1 . . . . . . . . Scanalyzer . | . . . . . . . . . . Garrison Access Hacks . | . . . . . . . . . . Unauthorized Hacks . | . . . . . . . . . . Terminals . | . . . . . . . . . . Fabricators . | . . . . . . . . . . Repair Stations . | . . . . . . . . . . Recycling Units . | . . . . . . . . . . Scanalyzers . | . . . . . . . . . . Garrison Access . | . . . . . . . . . . Data Cores Recovered 2 | . . . . 1 . . . . 1 Used . | . . . . . . . . . . Hacking Detections 2 | . 1 . . . . . 1 . . Full Trace Events . | . . . . . . . . . . Feedback Events . | . . . . . . . . . . Feedback Blocked . | . . . . . . . . . . Robot Schematics Acquired . | . . . . . . . . . . Robots Built . | . . . . . . . . . . Authchips . | . . . . . . . . . . Time . | . . . . . . . . . . Total Robot Build Rating . | . . . . . . . . . . Part Schematics Acquired . | . . . . . . . . . . Parts Built . | . . . . . . . . . . Authchips . | . . . . . . . . . . Time . | . . . . . . . . . . Total Part Build Rating . | . . . . . . . . . . Parts Repaired 1 | . . . 1 . . . . . . Time 32 | . . . 32 . . . . . . Parts Recycled . | . . . . . . . . . . Recycled Matter . | . . . . . . . . . . Retrieved Matter . | . . . . . . . . . . Retrieved Components . | . . . . . . . . . . Parts Scanalyzed . | . . . . . . . . . . Part Schematics Acquired . | . . . . . . . . . . Parts Damaged . | . . . . . . . . . . Bothacking | -11 -10 -10 -8 -7 -6 -6 -6 -6 -5 ------------ Run | Yrd Mat Sub Mat Fac Fac Was Fac DSF Fac Used RIF Installer . | . . . . . . . . . . Robots Hacked 1 | . . . . . . . . . 1 Non-combat . | . . . . . . . . . . Combat 1 | . . . . . . . . . 1 Robot Hacks Applied 1 | . . . . . . . . . 1 parse_system 1 | . . . . . . . . . 1 Relay Couplers Released 1 | . . . 1 . . . . . . Machine Destruction 1 | . . . 1 . . . . . . Fabnet Peak Effective % . | . . . . . . . . . . Robots Rewired . | . . . . . . . . . . Allies Hacked 1 | . . . . . . . . . 1 Hacks Repelled . | . . . . . . . . . . Allies | -11 -10 -10 -8 -7 -6 -6 -6 -6 -5 -------- Run | Yrd Mat Sub Mat Fac Fac Was Fac DSF Fac Total Allies 20 | . . . . . . 20 . . . Largest Group 19 | . . . . . . 19 18 18 17 Highest-Rated Group 702 | . . . . . . 702 677 677 652 Highest-Rated Ally 50 | . . . . . . 50 50 50 50 Total Orders 4 | . . . . . 4 . . . . EXPLORE 4 | . . . . . 4 . . . . Ally Attacks 227 | . . . . . . 68 . 49 110 Total Damage 7113 | . . . . . . 3253 . 1216 2644 Kills 32 | . . . . . . 6 . 6 20 Allies Corrupted . | . . . . . . . . . . Allies Melted . | . . . . . . . . . . Intel | -11 -10 -10 -8 -7 -6 -6 -6 -6 -5 ------- Run | Yrd Mat Sub Mat Fac Fac Was Fac DSF Fac Robot Analysis Total . | . . . . . . . . . . Derelict Logs Recovered 1 | . . 1 . . . . . . . Drone Launches 4 | . . . . . 4 . . . . Drone Recoveries 3 | . . . . . 3 . . . . Exploration | -11 -10 -10 -8 -7 -6 -6 -6 -6 -5 ------------- Run | Yrd Mat Sub Mat Fac Fac Was Fac DSF Fac Turns Passed 3120 | 72 322 650 338 302 288 295 33 183 637 Spaces Moved 3698 | 53 224 868 261 457 268 445 36 243 843 Core 50 | 8 . . . . . . . . 42 Treads . | . . . . . . . . . . Legs 269 | 45 224 . . . . . . . . Wheels . | . . . . . . . . . . Hover 2662 | . . 868 261 457 268 445 36 51 276 Flight 717 | . . . . . . . . 192 525 Fastest Speed 31 | 50 120 70 62 48 48 45 45 36 31 Average Speed 61 | 120 120 70 65 50 74 50 45 39 44 Slowest Speed 365 | 190 120 70 70 62 108 52 45 365 350 Overloaded Moves . | . . . . . . . . . . Propulsion Burnouts . | . . . . . . . . . . Robots Hopped 2 | . . . . . . . . . 2 Cave-ins Triggered . | . . . . . . . . . . Exploration Rate (%) 33 | 4 33 33 30 12 11 96 2 97 21 Regions Visited 9 Branch Regions 1 Pre-discovered Areas 1 | . . 1 . . . . . . . Known Exits Taken 2 | . . 1 . . . . 1 . . Unknown Exits Taken 4 | 1 1 . 1 1 . . . . . Scrap Searched 5 | . . 5 . . . . . . . Spaces Dug . | . . . . . . . . . . Terrain Destroyed 80 | . . . 1 . 44 15 . 20 . Melee . | . . . . . . . . . . Projectile 2 | . . . 1 . 1 . . . . AOE 78 | . . . . . 43 15 . 20 . Terrain Rammed . | . . . . . . . . . . Walls Destroyed . | . . . . . . . . . . Machines Disabled . | . . . . . . . . . . Actions | -11 -10 -10 -8 -7 -6 -6 -6 -6 -5 --------- Run | Yrd Mat Sub Mat Fac Fac Was Fac DSF Fac Total 4289 | 59 247 889 389 506 316 505 51 307 1020 Wait 317 | . 1 . 95 13 5 50 15 50 88 Move 3685 | 52 223 867 260 456 268 444 35 241 839 Hop 2 | . . . . . . . . . 2 Pick Up 24 | 1 3 2 4 7 2 2 . . 3 Fast Attach 39 | 5 1 1 6 2 1 1 . 2 20 Attach 11 | 1 . 2 3 1 2 . . . 2 Detach 2 | . . 1 . . . . . . 1 Swap 40 | . 2 3 4 8 11 3 1 2 6 Drop 33 | . . 2 . 9 8 2 . 2 10 Fire 121 | . 14 10 17 9 18 3 . 9 41 Melee . | . . . . . . . . . . Ram 11 | . . 1 . 1 1 . . . 8 Kick 3 | . 3 . . . . . . . . Crush . | . . . . . . . . . . Escape Stasis 1 | . . . . . . . . 1 . Rewire . | . . . . . . . . . . Trap . | . . . . . . . . . . Miscellaneous . | . . . . . . . . . . Route ------- -11/Scrapyard -10/Materials (discovered 2 exits: [*Min] / [*Sub]) -10/Subcaves -8/Materials -7/Factory -6/Factory -6/Waste -6/Factory -6/DSF -5/Factory History --------- Turn | Location | Event 18 | -11/Scrapyard | Discovered new exit (range 15) 73 | -11/Scrapyard | Entered Materials 265 | -10/Materials | Discovered new exit (range 14) 300 | -10/Materials | Build established: Mutant 390 | -10/Materials | Discovered new exit (range 4) 395 | -10/Materials | Entered Subcaves 458 | -10/Subcaves | Core integrity fell below 50% 490 | -10/Subcaves | Shifting Twisted Machinery released Hvy. Riot Gun 577 | -10/Subcaves | Disturbed a concealed Subdweller 586 | -10/Subcaves | Learned location of Zion (-7) 586 | -10/Subcaves | Met a Zionite searching for "candidates" 593 | -10/Subcaves | A swath of the cavern ceiling suddenly collapsed 594 | -10/Subcaves | Identified exit to Materials 640 | -10/Subcaves | Shifting Twisted Machinery released Spk. Treads 642 | -10/Subcaves | Shifting Twisted Machinery released Sub. Machine Gun 644 | -10/Subcaves | Shifting Twisted Machinery released Hvy. Battle Rifle 651 | -10/Subcaves | Shifting Twisted Machinery released Mak. Thermal Plating 1045 | -10/Subcaves | Entered Materials 1045 | -8/Materials | Evolved 4 slots: Propulsion x2, Utility x2 1216 | -8/Materials | Garrison activated, responded to threat 1255 | -8/Materials | Met 7R-MNS 1367 | -8/Materials | Repaired Imp. Hover Unit 1372 | -8/Materials | Discovered new exit (range 17) 1383 | -8/Materials | Entered Factory 1383 | -7/Factory | Evolved 2 slots: Power x1, Weapon x1 1384 | -7/Factory | Caught up to 7R-MNS 1554 | -7/Factory | Discovered new exit (range 9) 1685 | -7/Factory | Entered another Factory area 1685 | -6/Factory | Evolved 2 slots: Utility x1, Weapon x1 1737 | -6/Factory | Garrison activated, responded to threat 1793 | -6/Factory | Build established: Skirmisher 1943 | -6/Factory | Discovered new exit (range 6) 1973 | -6/Factory | Sucked down chute 1973 | -6/Factory | Entered Waste 1974 | -6/Waste | Met a frightened Derelict 1976 | -6/Waste | Spotted C-40 Crusher 2002 | -6/Waste | Spotted C-40 Crusher 2009 | -6/Waste | Spotted C-40 Crusher 2011 | -6/Waste | Spotted C-40 Crusher 2020 | -6/Waste | Warlord forces began an assault 2025 | -6/Waste | Allies destroyed C-40 Crusher 2029 | -6/Waste | Spotted C-40 Crusher 2029 | -6/Waste | Spotted C-40 Crusher 2031 | -6/Waste | Allies destroyed C-40 Crusher 2034 | -6/Waste | Allies destroyed C-40 Crusher 2039 | -6/Waste | Destroyed C-40 Crusher 2056 | -6/Waste | Discovered new exit (range 10) 2176 | -6/Waste | Allies destroyed C-40 Crusher 2178 | -6/Waste | Allies destroyed C-40 Crusher 2268 | -6/Waste | Entered Factory 2268 | -6/Factory | Accompanied by 18 allies 2285 | -6/Factory | Identified exit to DSF 2301 | -6/Factory | Entered DSF 2301 | -6/DSF | Accompanied by 18 allies 2318 | -6/DSF | Additional patrols routed to DSF 2359 | -6/DSF | Discovered new exit (range 16) 2447 | -6/DSF | Build established: Tank 2484 | -6/DSF | Entered Factory 2484 | -5/Factory | Accompanied by 17 allies 2484 | -5/Factory | Evolved 2 slots: Propulsion x1, Utility x1 2655 | -5/Factory | Lost 4 allies 2831 | -5/Factory | Garrison activated, responded to threat 2840 | -5/Factory | Spotted B-75 Beast 2845 | -5/Factory | Released all parts (11) 2875 | -5/Factory | Lost 4 parts (3n1u) 2927 | -5/Factory | Lost 8 allies 3027 | -5/Factory | Lost 7 parts (2p1n1u3w) 3041 | -5/Factory | Core integrity fell below 50% 3084 | -5/Factory | First assault squad dispatched 3104 | -5/Factory | Core integrity fell below 20% 3121 | -5/Factory | Destroyed by S-27 Virus with Autogun Last Messages --------------- 03045_ Penetrated by Slug. 03047_ R-10 Processor collects Gauss Rifle. 03048_ Penetrated by Slug. 03049_ R-10 Processor collects Carbon-fiber Leg. 03050_ R-10 Processor collects Field Propulsion Drive. 03078_ Slammed into S-27 Virus. 03080_ Adv. Heat Sink destroyed. 03081_ Slammed into S-27 Virus. 03083_ Destabilizing: Core damaged (-20). 03084_ ALERT: Significant disruption in Zone 5Y, assault force dispatched. 03086_ Gyrokinetic Inverter destroyed. 03089_ Enh. Fission Core destroyed. 03090_ K-01 Serf collects debris. 03092_ Slammed into M-13 Machinist. 03108_ Gyrokinetic Inverter destroyed. 03119_ Adv. ECM Suite destroyed. 03121_ Slammed into S-27 Virus. 03121_ S-27 Virus destroyed. Map ----- +----------------------------------------------------+ | ?????????????????????????????????????????????????? | | ?????????????????????????????????????????????????? | | ?????????????????????????????????????????????????? | | ?????????????????????????????????????????????????? | | ?????????????????????????????????????????????????? | | ?????????????????????????????????????????????????? | | ?????????????????????????????????????????????????? | | ?????????????????????????????????????????????????? | | ?????????????????????????????????????????????????? | | ?????????????????????????????????????????????????? | | ?????????????????????????????????????????????????? | | ?????????????????????????????????????????????????? | | ?????????????????????????????????????????????????? | | ?????????????????????????????????????????????????? | | ?????????????????????????????????????????????????? | | ?????????????????????????????????????????????????? | | ?????????????????????????????????????????????????? | | ?????????????????????????????????????????????????? | | ????????????###################??????????????????? | | ????????????# #??????????????????? | | ????????????# """"" """"" #??????????????????? | | ????????????# """"" """"" #??? ????????????? | | ????????????# """ """ s #?? !????????? | | ????????????# s s #?? ????????? | | ????????????# % ss #? ??????????? | | ????????????# @s # #????????????? | | ????????????###############+### #????????????? | | ??????????????? ???# #????????????? | | ??????????????? """?# #????????????? | | ???????????????""" Y"?# #????????????? | | ????????????????"" """?# #????????????? | | ?????????????????" ?# #????????????? | | ?????????????????? ?# #####????????????? | | ??####+#############/### #????????????????? | | ??# #????????????????? | | ??# #????????????????? | | ### #????????????????? | | # #????????????????? | | # #?????????????? ?? | | # """" #########+####### #????????###### ?? | | # """" #???# """ #?? #?????? ?? | | =# """" #???# "Y" #?? #????? ?? | | %+ """" #???# " " #?? #?????? ?? | | =%#% """" ##??# """ #?? ?????? #? | | [# """" ##?# """ #???##+###?????# ?? | | # "" ### """ #??????????????# ?? | | # %+ #??????????????# #? | | # %"" #### #???#??????????# ## | | # "" #??####+######???#??????????# | | ### "" #????????????????#????????### | +----------------------------------------------------+ Best States ------------- Heat Dissipation 59 Energy Generation 34 Energy Capacity 390 Matter Stores 300 Matter Capacity 300 Sight Range 21 Robot Scan Range 15 Terrain Scan Range 20 Terrain Scan Density 110 ECM Strength 2 Armor Coverage 160 Core Shielding 20 Weapon Shielding 33 Evasion (%) 71 Targeting Accuracy 5 Item Schematics ----------------- None Robot Schematics ------------------ None Fabricated ------------ Nothing Alien Tech Used ----------------- None Achievements -------------- None Challenges ------------ None Game ------ Seed MakeshiftLinearWheel Manual? 0 Play Time 02:03:00 Cumulative 8.6 hours Start 2025.01.17 @ 19:28:06 End 2025.01.17 @ 21:34:05 Sessions 1 Manual Loads 0 Difficulty Rogue Special Mode None Game No. 4 Rogue 4 Adventurer 0 Explorer 0 Win Type - Total 0 Types 0/0/0/0/0/0/0/0/0 Lore% 4 Gallery% 12 Achievement% 12 Wizard Run 0 Options --------- Layout 2 ASCII 0 Keyboard 0 Movement Numpad Keybinds 0 Fullscreen 2 Font 48/Smallcaps Map View 50x44 Zoom Use 0% Tactical HUD 1 Map Filters NONE Filters NONE Steam 0 RUN: 99232581-7222-4f11-b6af-50e4a5a906f6